bitfinex/quotes_ETHUSD_20220213
["timestamp","ask_amount","ask_price","bid_price","bid_amount"]
[1644759459923,0.69242471,2942.4,2942.3,1.05839255]
[1644759460321,2.13809733,2942.4,2942.3,1.05839255]
[1644759461127,0.69242471,2942.4,2942.3,1.05839255]
[1644759461727,2.13813448,2942.4,2942.3,0.20870255]
[1644759470973,2.13813448,2942.4,2942.3,1.05844255]
[1644759474925,2.13813448,2942.4,2942.3,0.20870255]
[1644759475526,2.55,2942.3,2942.2,0.4323549]
[1644759475728,3.99570977,2942.3,2942.2,0.4323549]
[1644759475931,1.44570977,2942.3,2942.2,0.4323549]
[1644759476132,3.14539977,2942.3,2941.6,0.1698]
[1644759476332,1.44570977,2942.2,2941.3,0.1698]
[1644759476531,1.44570977,2942.2,2940.8,24.49717]
[1644759476532,1.44570977,2942.2,2941.2,0.1698]
[1644759476732,2.29555977,2942.2,2941.2,0.1698]
[1644759477032,1.16661924,2942.0,2941.2,0.1698]
[1644759477235,1.44570977,2941.9,2941.2,0.1698]
[1644759477531,3.14558977,2941.9,2941.2,0.1698]
[1644759477731,1.44570977,2941.8,2941.2,0.1698]
[1644759477932,1.44570977,2941.8,2941.5,0.84997]
[1644759478781,2.29564977,2941.8,2941.5,0.84997]
[1644759478979,1.44570977,2941.7,2941.5,0.84997]
[1644759482824,1.44570977,2941.6,2941.5,0.84997]
[1644759483025,1.44570977,2941.8,2941.5,0.84997]
[1644759483428,1.44570977,2941.8,2941.4,0.02248343]
[1644759483429,2.63260744,2941.8,2941.4,0.02248343]
[1644759483629,2.29582977,2941.7,2941.4,0.02248343]
[1644759483827,1.44570977,2941.6,2941.4,0.02248343]
[1644759484026,1.44570977,2941.5,2941.4,0.02248343]
[1644759485433,1.44570977,2941.5,2941.1,0.01086148]
[1644759485632,3.14592977,2941.5,2941.1,0.01086148]
[1644759485883,2.29581977,2941.4,2941.1,0.01086148]
[1644759486084,1.44570977,2941.3,2941.1,0.01086148]
[1644759486483,1.44570977,2941.3,2940.7,1.15049093]
[1644759486684,1.44570977,2941.3,2941.1,0.01086121]
[1644759486884,0.85009,2941.4,2941.1,0.86093121]
[1644759487085,1.2237,2941.9,2941.1,0.86093121]
[1644759487284,1.44603877,2941.8,2941.1,0.01086121]
[1644759487586,1.44603877,2941.8,2941.2,0.1698]
[1644759487783,1.44603877,2941.8,2940.7,24.5212429]
[1644759487784,1.44603877,2941.8,2940.9,0.1698]
[1644759487982,1.44603877,2941.8,2941.5,0.92085631]
[1644759488385,1.44603877,2941.7,2941.5,0.92085631]
[1644759488583,1.44603877,2941.6,2941.5,0.92085631]
[1644759488784,1.44603877,2941.9,2941.5,0.92085631]
[1644759488984,1.44603877,2941.8,2941.5,1.77076631]
[1644759490227,1.44603877,2941.7,2941.5,1.77076631]
[1644759490426,0.84987,2941.9,2941.5,0.84991]
[1644759490624,1.44592475,2941.8,2941.5,0.84991]
[1644759491528,1.44592475,2941.8,2941.6,0.87588128]
[1644759491729,0.84984,2942.0,2941.7,0.84986]
[1644759491928,1.44594548,2941.9,2941.7,0.84986]
[1644759492628,2.29582548,2941.9,2941.7,0.84986]
[1644759492829,1.44594548,2941.8,2941.7,0.84986]
[1644759494072,1.44594548,2941.9,2941.7,0.84986]
[1644759495077,1.44594548,2941.8,2941.7,0.84986]
[1644759495479,1.44594548,2941.9,2941.7,0.84986]
[1644759495677,2.29581548,2941.9,2941.7,0.84986]
[1644759495881,1.44594548,2941.8,2941.7,0.84986]
[1644759498132,1.44594548,2941.8,2941.6,0.84994]
[1644759498327,2.29590548,2941.8,2941.2,1.69993]
[1644759498526,1.44594548,2941.7,2941.2,1.69993]
[1644759499025,0.01086539,2942.0,2941.2,1.69993]
[1644759499225,0.01086539,2942.0,2941.3,1.18654328]
[1644759499426,0.85,2941.6,2941.3,2.03653328]
[1644759501490,1.69993,2941.9,2941.3,2.03653328]
[1644759501491,0.84988,2941.9,2941.3,2.03653328]
[1644759507833,0.0108652,2942.0,2941.3,2.03653328]
[1644759508034,0.84984,2942.0,2941.3,2.03653328]
[1644759508277,0.8607052,2942.0,2941.3,2.03653328]
[1644759509276,0.84984,2942.0,2941.3,2.03653328]
[1644759509477,0.86070529,2942.0,2941.3,2.03653328]
[1644759510478,0.84984,2942.0,2941.9,1.17667732]
[1644759510678,0.36567053,2941.8,2941.3,0.84999]
[1644759511781,0.36567053,2941.8,2941.7,0.84985]
[1644759517883,0.01029565,2942.0,2941.8,3.35]
[1644759518085,0.01029565,2942.0,2941.7,4.34985]
[1644759518086,0.01029565,2942.0,2941.9,3.6698]
[1644759518282,0.01029565,2942.0,2941.9,20.92943]
[1644759518483,0.01029565,2942.0,2941.9,21.22943]
[1644759519081,0.1698,2942.1,2941.9,21.22943]
[1644759519282,0.1698,2942.1,2942.0,1.6992]
[1644759520428,0.1698,2942.1,2942.0,4.9992457]
[1644759520627,1.61544414,2942.1,2942.0,4.9992457]
[1644759521434,0.1698,2942.1,2942.0,4.9992457]
[1644759521636,0.1698,2942.1,2942.0,5.01026431]
[1644759521831,1.61545858,2942.1,2942.0,1.6992]
[1644759527829,1.44565858,2942.1,2942.0,1.6992]
[1644759539082,1.44565858,2942.1,2942.0,2.6748427]
[1644759541118,1.44471241,2942.1,2942.0,2.6748427]
[1644759541793,0.05269587,2942.2,2942.0,2.6748427]
[1644759542030,0.06242058,2942.2,2942.0,22.5848427]
[1644759542827,0.06242058,2942.2,2942.0,2.6748427]
[1644759543026,0.05269587,2942.2,2942.0,2.6748427]
[1644759543228,0.06242073,2942.2,2942.0,2.6748427]
[1644759544229,0.05269587,2942.2,2942.0,22.8848427]
[1644759544428,0.0624209,2942.2,2942.0,23.6786427]
[1644759545432,0.05269587,2942.2,2942.0,23.6786427]
[1644759545632,0.0624209,2942.2,2942.0,22.8848427]
[1644759546685,0.05269587,2942.2,2942.0,22.8848427]
[1644759546886,0.06242088,2942.2,2942.0,22.8848427]
[1644759547288,0.06242088,2942.2,2942.1,0.1698]
[1644759547686,0.05269587,2942.2,2942.1,0.1698]
[1644759548287,0.05269587,2942.2,2942.0,22.8848427]
[1644759548288,0.05269587,2942.2,2942.0,23.0546427]
[1644759549187,0.06242085,2942.2,2942.0,23.0546427]
[1644759550229,0.05269587,2942.2,2942.0,23.0546427]
[1644759550429,0.06242085,2942.2,2942.0,23.0546427]
[1644759551433,0.05269587,2942.2,2942.0,23.0546427]
[1644759551634,0.06242085,2942.2,2942.0,23.0546427]
[1644759552634,0.05269587,2942.2,2942.0,23.0546427]
[1644759552836,0.06242085,2942.2,2942.0,23.0546427]
[1644759553579,0.06242085,2942.2,2942.0,22.079]
[1644759553779,0.05269587,2942.2,2942.0,22.079]
[1644759553979,0.06242086,2942.2,2942.0,22.079]
[1644759554579,0.06242086,2942.2,2942.0,21.9092]
[1644759554879,0.06242086,2942.2,2942.0,1.6992]
[1644759554880,0.05269587,2942.2,2942.0,1.6992]
[1644759555278,0.06242086,2942.2,2942.0,1.6992]
[1644759556086,0.05269587,2942.2,2942.0,1.6992]
[1644759556485,0.06242086,2942.2,2942.0,1.6992]
[1644759557532,0.05269587,2942.2,2942.0,1.6992]
[1644759557835,0.06242085,2942.2,2942.0,1.6992]
[1644759558634,0.05269587,2942.2,2942.0,1.6992]
[1644759558834,0.06242086,2942.2,2942.0,1.6992]
[1644759559034,0.02392086,2942.2,2942.0,1.6992]
[1644759559436,0.06242086,2942.2,2942.0,1.6992]
[1644759559838,0.05269587,2942.2,2942.0,1.6992]
[1644759560036,0.06242086,2942.2,2942.0,1.6992]
[1644759560895,0.06242086,2942.2,2941.9,0.84987]
[1644759561087,1.4458333,2942.1,2941.9,0.84987]
[1644759562487,1.45555844,2942.1,2941.9,0.84987]
[1644759562687,1.4458333,2942.0,2941.9,0.84987]
[1644759563489,1.4458333,2942.1,2941.9,0.84987]
[1644759563687,1.45555852,2942.1,2941.9,0.84987]
[1644759563887,1.4458333,2942.0,2941.9,0.84987]
[1644759564188,1.4458333,2942.0,2941.8,0.84991]
[1644759564632,2.99643281,2941.9,2941.2,0.1698]
[1644759564831,0.0097253,2942.0,2941.9,0.0234945]
[1644759565031,1.45561094,2942.0,2941.9,0.0234945]
[1644759565232,1.45447191,2942.0,2941.9,0.0234945]
[1644759565735,4.560557,2942.0,2941.9,0.0234945]
[1644759566137,1.44588564,2942.0,2941.9,0.0234945]
[1644759566839,1.44588564,2942.1,2941.9,0.0234945]
[1644759567038,3.0338685,2942.0,2941.9,0.0234945]
[1644759567340,4.47975414,2942.0,2941.9,0.0234945]
[1644759568383,5.59397527,2942.0,2941.9,0.0234945]
[1644759569783,0.046989,2941.8,2941.3,1.69991]
[1644759569981,1.4459212,2941.7,2941.5,1.69982]
[1644759570989,1.4459212,2941.7,2941.6,0.84993]
[1644759586089,0.046989,2941.8,2941.6,0.84993]
[1644759586288,1.44590265,2941.7,2941.6,0.84993]
[1644759587431,0.046989,2941.8,2941.6,0.84993]
[1644759590037,0.046989,2941.8,2941.6,20.75993]
[1644759590439,0.046989,2941.8,2941.6,20.92973]
[1644759590639,0.04592384,2941.8,2941.6,20.92973]
[1644759592493,0.04592384,2941.8,2941.6,20.75993]
[1644759593893,0.04592384,2941.8,2941.6,0.84993]
[1644759594095,0.04592384,2941.8,2941.6,20.75993]
[1644759596142,0.04592384,2941.8,2941.6,0.84993]
[1644759601394,1.44583373,2941.7,2941.6,0.84993]
[1644759601588,1.44583373,2941.7,2941.5,0.1698]
[1644759601589,4.55717577,2941.7,2941.5,0.1698]
[1644759601788,1.44583373,2941.6,2941.5,1.0198]
[1644759602034,1.44583373,2941.6,2941.5,0.85]
[1644759602935,1.44583373,2941.6,2941.4,0.00365225]
[1644759602936,5.58358299,2941.6,2941.4,0.85368225]
[1644759603134,5.58358299,2941.6,2941.1,0.00365225]
[1644759603135,4.86463607,2941.5,2941.1,0.00365225]
[1644759603335,4.86463607,2941.5,2940.8,0.1698]
[1644759603336,1.44583373,2941.4,2941.2,0.00972753]
[1644759603734,3.17204767,2941.3,2941.2,0.00972753]
[1644759603935,1.44583373,2941.3,2941.2,0.00972753]
[1644759604335,1.44583373,2941.4,2941.1,0.85375225]
[1644759604535,1.44583373,2941.4,2941.1,0.86347964]
[1644759605136,2.97458506,2941.3,2941.1,0.86347964]
[1644759605336,1.44583373,2941.4,2941.1,0.86347964]
[1644759605337,1.44583373,2941.2,2941.1,0.86347964]
[1644759605538,1.44583373,2941.3,2941.1,0.8501]
[1644759605796,1.44583373,2941.3,2941.1,0.86347972]
[1644759605991,1.44583373,2941.2,2941.1,0.85982747]
[1644759606391,1.44583373,2941.6,2941.1,0.85982747]
[1644759606590,1.44583373,2941.5,2941.1,0.8537243]
[1644759606891,1.44583373,2941.4,2941.1,0.8537243]
[1644759607290,1.44583373,2941.3,2941.1,0.8537243]
[1644759607493,3.22342271,2941.7,2941.2,0.0036243]
[1644759607690,1.4460635,2941.6,2941.2,0.85005]
[1644759608091,3.00029868,2941.5,2941.2,0.86340187]
[1644759608291,1.4460635,2941.4,2941.2,0.86340187]
[1644759609091,1.4460635,2941.3,2941.2,0.8536743]
[1644759609292,1.4460635,2941.3,2941.2,0.86340164]
[1644759609935,1.4460635,2941.4,2941.2,0.86340164]
[1644759610137,1.4460635,2941.3,2941.2,0.86340164]
[1644759610336,1.4460635,2941.3,2941.2,0.8536743]
[1644759610535,1.18522384,2941.8,2941.2,0.85977732]
[1644759610736,1.44603487,2941.7,2941.2,0.85977732]
[1644759610940,1.44603487,2941.7,2941.4,0.84991]
[1644759611739,1.44521698,2941.7,2941.4,0.84991]
[1644759616889,4.4850165,2941.7,2941.4,0.84991]
[1644759617139,0.84998,2941.6,2941.4,0.84991]
[1644759617739,0.35133418,2941.6,2941.4,0.84991]
[1644759619439,3.0129518,2941.5,2941.2,0.00972761]
[1644759619639,3.0129518,2941.5,2941.2,0.01335191]
[1644759619640,0.85005,2941.5,2941.2,0.01335191]
[1644759619844,0.85005,2941.5,2940.7,0.1734243]
[1644759620039,0.85005,2941.5,2941.2,0.00972735]
[1644759620444,0.85005,2941.5,2941.2,0.85979735]
[1644759621091,0.85005,2941.5,2941.2,0.85007]
[1644759621292,2.88530384,2941.8,2941.2,0.85979735]
[1644759621293,0.84998,2941.6,2941.2,0.85979735]
[1644759621488,0.84998,2941.6,2941.4,0.84995]
[1644759621693,1.18522384,2941.8,2941.4,0.84995]
[1644759621895,0.04592384,2941.8,2941.4,0.8535743]
[1644759631597,1.4459098,2941.7,2941.4,0.8535743]
[1644759638692,0.84861586,2941.6,2941.4,0.8535743]
[1644759638892,1.4459098,2941.5,2941.4,0.8535743]
[1644759639091,1.4459098,2941.5,2941.4,0.84995]
[1644759639939,1.4459098,2941.7,2941.4,0.84995]
[1644759640142,1.4459098,2941.6,2941.4,0.8035743]
[1644759640543,1.4459098,2941.5,2941.4,0.8035743]
[1644759640741,1.4459098,2941.5,2941.4,0.79995]
[1644759640945,1.4459098,2941.7,2941.4,0.79995]
[1644759641148,0.04592384,2941.8,2941.4,0.8035743]
[1644759641149,1.4459098,2941.6,2941.4,0.8035743]
[1644759641345,1.4459098,2941.5,2941.4,0.8035743]
[1644759641545,1.4459098,2941.7,2941.4,0.79995]
[1644759641745,1.4459098,2941.7,2941.4,0.8035743]
[1644759644090,1.4459098,2941.7,2941.4,1.6533843]
[1644759644290,1.4459098,2941.7,2941.5,0.8498]
[1644759646397,1.3759098,2941.7,2941.5,0.8498]
[1644759646798,1.3759098,2941.7,2941.6,1.9059035]
[1644759650139,1.3759098,2941.7,2941.6,0.84981]
[1644759655043,1.3759098,2941.7,2941.6,0.79981]
[1644759655850,4.46714675,2941.7,2941.4,0.0036243]
[1644759656050,4.46714675,2941.7,2941.2,0.0036243]
[1644759656051,0.85006,2941.6,2941.2,0.0036243]
[1644759656249,3.14576875,2941.5,2941.2,0.00972785]
[1644759657050,3.14576875,2941.5,2941.2,0.85978785]
[1644759657251,3.14576875,2941.5,2941.2,0.85978734]
[1644759657651,3.99584875,2941.5,2941.2,0.85978734]
[1644759658052,5.17952184,2941.5,2941.2,0.85978734]
[1644759658293,5.17952184,2941.5,2941.2,0.85006]
[1644759658693,5.17952184,2941.5,2941.2,0.85978734]
[1644759659493,5.17952184,2941.5,2941.2,0.85006]
[1644759659894,5.17952184,2941.5,2941.2,0.85978734]
[1644759660797,5.17952184,2941.5,2941.2,0.85006]
[1644759660999,5.17952184,2941.5,2941.2,0.00972737]
[1644759662042,5.17952184,2941.5,2940.7,0.8538443]
[1644759662043,0.85019,2941.4,2940.7,0.8538443]
[1644759662250,3.78032757,2941.3,2941.2,0.00972739]
[1644759663245,3.78032757,2941.3,2940.9,0.85016]
[1644759663444,0.85015,2941.2,2941.1,0.00972741]
[1644759663646,3.3203125,2941.2,2941.1,0.00972741]
[1644759664449,3.3203125,2941.2,2941.0,0.85014]
[1644759664650,3.3203125,2941.2,2941.0,0.85986757]
[1644759664847,3.08368023,2941.4,2941.0,0.85986757]
[1644759665047,3.08368023,2941.4,2941.0,0.86349187]
[1644759665648,3.08368023,2941.4,2941.0,0.8537643]
[1644759665898,3.08368023,2941.4,2941.2,0.85002]
[1644759666599,1.44618691,2941.3,2941.2,0.85002]
[1644759667002,1.44618691,2941.3,2941.2,0.85974734]
[1644759667398,1.44618691,2941.6,2941.2,0.85974734]
[1644759667598,1.44618691,2941.5,2941.2,0.86337164]
[1644759667801,1.44618691,2941.6,2941.2,0.86337164]
[1644759668001,1.44618691,2941.5,2941.2,0.8536443]
[1644759668202,1.44618691,2941.4,2941.2,0.86337173]
[1644759668403,1.44618691,2941.3,2941.2,0.01335173]
[1644759668602,1.44618691,2941.3,2941.2,0.00972743]
[1644759668902,1.44618691,2941.3,2940.8,0.04253929]
[1644759668903,0.01945485,2941.1,2940.8,0.04253929]
[1644759669101,0.01945485,2941.1,2940.8,0.0036243]
[1644759669300,0.01945485,2941.1,2940.6,0.4234243]
[1644759669543,1.44618691,2941.0,2940.6,0.1734243]
[1644759669742,0.85025,2940.9,2940.6,0.0036243]
[1644759669942,1.44618691,2940.8,2940.5,0.85027]
[1644759670142,1.71995485,2941.1,2940.5,0.8538943]
[1644759670342,1.12565341,2940.9,2940.6,0.0036243]
[1644759670544,1.44634213,2940.8,2940.6,0.0036243]
[1644759670746,1.44634213,2940.8,2940.5,0.85028]
[1644759670946,1.44634213,2940.8,2940.5,0.8539043]
[1644759671745,2.29659213,2940.8,2940.5,0.8539043]
[1644759671946,0.85025,2940.8,2940.5,0.8539043]
[1644759672548,0.85025,2940.8,2940.5,0.0036243]
[1644759672549,1.4464456,2940.7,2940.5,0.0036243]
[1644759672748,1.4464456,2940.7,2940.3,0.0036243]
[1644759672947,4.3917756,2940.7,2940.5,0.01087394]
[1644759673149,1.3964456,2940.6,2940.5,0.01087394]
[1644759673895,1.3964456,2940.6,2939.8,0.0036243]
[1644759674092,0.85043,2940.5,2939.6,0.0036243]
[1644759674292,0.85043,2940.5,2940.4,0.01087412]
[1644759674696,3.84356343,2940.5,2940.4,0.01087412]
[1644759675193,3.84356343,2940.5,2939.7,0.0036243]
[1644759675394,4.69406343,2940.5,2940.3,0.0108743]
[1644759675595,0.85043,2940.5,2940.3,0.0108743]
[1644759676400,0.85043,2940.5,2939.7,0.0036243]
[1644759676599,0.85043,2940.5,2940.3,0.01087439]
[1644759677044,2.9477826,2940.4,2940.3,0.01087439]
[1644759677250,0.85043,2940.5,2940.3,0.01087439]
[1644759677647,0.85043,2940.5,2939.7,0.0036243]
[1644759677847,1.70093,2940.5,2940.3,0.01087439]
[1644759678650,2.9198216,2940.4,2940.3,0.01087439]
[1644759678849,2.94966199,2940.4,2939.8,0.0036243]
[1644759679050,0.8505,2940.4,2940.3,0.01087439]
[1644759679253,1.70093,2940.5,2940.3,0.01087439]
[1644759679856,2.70093,2940.5,2940.3,0.01087439]
[1644759680051,2.70093,2940.5,2939.6,0.0036243]
[1644759680052,4.99842281,2940.4,2939.6,0.0036243]
[1644759680252,4.99842281,2940.4,2939.8,0.04350408]
[1644759680253,4.99842281,2940.2,2939.8,0.04350408]
[1644759680452,1.3219,2940.2,2939.8,0.04350408]
[1644759681100,1.3219,2940.2,2939.3,0.0036243]
[1644759681101,1.1519,2940.2,2939.3,0.0036243]
[1644759681501,1.1519,2940.2,2939.9,0.0108751]
[1644759681799,1.18544213,2940.0,2939.9,0.0108751]
[1644759682403,1.18544213,2940.0,2939.3,0.0036243]
[1644759682698,2.88669213,2940.0,2939.8,0.00524961]
[1644759682900,1.70125,2940.0,2939.8,0.00524961]
[1644759683500,1.70125,2940.0,2939.3,0.0036243]
[1644759683900,1.70125,2940.0,2939.8,0.01088005]
[1644759684100,2.80691759,2940.0,2939.8,0.01088005]
[1644759684742,2.80691759,2940.0,2939.3,0.0036243]
[1644759684945,1.70125,2940.0,2939.3,0.0036243]
[1644759685145,1.70125,2940.0,2939.8,0.01088005]
[1644759685346,3.5,2939.9,2939.8,0.01088005]
[1644759685745,1.70125,2940.0,2939.8,0.01088005]
[1644759685948,1.70125,2940.0,2939.3,0.0036243]
[1644759686149,3.5,2939.9,2939.3,0.0036243]
[1644759686351,1.04778089,2939.8,2939.7,0.01088014]
[1644759686850,1.02071,2939.9,2939.7,0.01088014]
[1644759687249,1.02071,2939.9,2939.3,0.04715138]
[1644759687250,0.17,2939.9,2939.3,0.0036243]
[1644759687452,0.17,2939.9,2939.7,0.01088023]
[1644759688493,0.17,2939.9,2939.3,1.7046143]
[1644759688693,0.17,2939.9,2939.7,0.01088023]
[1644759689493,0.17,2939.9,2939.6,0.0036243]
[1644759689894,0.17,2939.9,2939.7,0.01088023]
[1644759690794,0.17,2939.9,2939.0,0.0036243]
[1644759691003,0.85051,2939.9,2939.7,0.01088023]
[1644759692043,0.85051,2939.9,2939.4,0.0036243]
[1644759692242,0.85051,2939.9,2939.7,0.01088023]
[1644759693542,1.70118,2939.9,2939.7,0.01088023]
[1644759694443,1.70118,2939.9,2938.9,0.0036243]
[1644759694644,1.70118,2939.9,2939.7,0.01088023]
[1644759695548,5.22108668,2939.9,2939.1,0.0036243]
[1644759695793,1.87118,2939.9,2939.7,0.01088023]
[1644759696796,1.02051,2939.9,2939.2,0.85062]
[1644759696997,1.02051,2939.9,2939.7,0.01088023]
[1644759697998,1.02051,2939.9,2939.0,0.0036243]
[1644759698200,1.02051,2939.9,2939.7,0.01088023]
[1644759698799,1.87116,2939.9,2939.7,0.01088023]
[1644759699198,1.87116,2939.9,2939.1,0.0036243]
[1644759699399,0.85051,2939.9,2939.7,0.01088023]
[1644759700458,0.85051,2939.9,2939.3,0.0036243]
[1644759700760,0.85051,2939.9,2939.7,0.01088023]
[1644759700962,1.70116,2939.9,2939.7,0.01088023]
[1644759701561,1.70116,2939.9,2939.1,0.0036243]
[1644759701761,1.70116,2939.9,2939.7,0.01088023]
[1644759702761,1.70116,2939.9,2939.2,0.0036243]
[1644759702963,1.70116,2939.9,2939.7,0.01055658]
[1644759703161,0.85068,2939.8,2939.7,0.01055658]
[1644759703995,0.85068,2939.8,2939.0,0.0036243]
[1644759704194,0.85065,2939.7,2939.6,0.01055667]
[1644759705094,0.85065,2939.7,2939.2,0.0036243]
[1644759705294,1.70135,2939.7,2939.0,0.0036243]
[1644759705494,1.70135,2939.7,2939.5,0.01055684]
[1644759705696,0.85065,2939.7,2939.5,0.01055684]
[1644759706397,0.85065,2939.7,2939.0,0.0036243]
[1644759706598,0.85065,2939.7,2939.5,0.01088058]
[1644759706797,0.85075,2939.6,2939.5,0.01088058]
[1644759708045,5.43124187,2939.6,2939.5,0.01088058]
[1644759708447,0.02176116,2939.4,2939.0,0.04715317]
[1644759708645,0.8507,2939.3,2939.0,0.04715317]
[1644759708844,2.1289037,2939.2,2939.0,0.04352887]
[1644759709044,0.98357958,2939.2,2938.7,1.70139]
[1644759709245,1.1693,2939.3,2938.7,1.7050143]
[1644759709444,1.1693,2939.3,2938.8,0.0036243]
[1644759709645,0.85069,2939.2,2938.8,0.0036243]
[1644759710345,1.1693,2939.3,2938.9,0.86032451]
[1644759710547,0.02176116,2939.4,2938.9,0.86032451]
[1644759710802,0.02176116,2939.4,2938.9,0.86394881]
[1644759711211,0.85064,2939.3,2938.9,0.8543143]
[1644759711708,0.85064,2939.3,2939.1,0.85064]
[1644759712108,0.85064,2939.3,2939.0,0.00963427]
[1644759712509,0.85064,2939.3,2938.7,0.0036243]
[1644759712709,0.85064,2939.3,2939.0,0.00963427]
[1644759713710,0.85064,2939.3,2938.9,0.0036243]
[1644759713910,0.85064,2939.3,2939.0,0.86127841]
[1644759714852,0.85064,2939.3,2939.0,0.85068]
[1644759715152,0.85064,2939.3,2939.0,0.86127841]
[1644759716160,0.85064,2939.3,2939.0,0.85068]
[1644759716358,0.85064,2939.3,2939.0,0.86127841]
[1644759716960,0.02176116,2939.4,2939.0,0.86127841]
[1644759717359,0.02176116,2939.4,2939.0,0.85068]
[1644759717559,0.02176116,2939.4,2939.1,0.01028076]
[1644759717760,0.02176116,2939.4,2939.1,0.01390506]
[1644759718395,0.85063,2939.3,2939.1,0.01028076]
[1644759718594,0.85063,2939.3,2939.0,0.0036243]
[1644759718799,0.85063,2939.3,2939.1,0.01028068]
[1644759719804,0.85063,2939.3,2938.6,0.0036243]
[1644759719996,0.85063,2939.3,2939.1,0.01028076]
[1644759720900,0.85063,2939.3,2938.6,1.70141]
[1644759721202,0.85063,2939.3,2939.1,0.01030219]
[1644759722248,0.85063,2939.3,2939.0,0.0036243]
[1644759722449,0.85063,2939.3,2939.1,0.01030219]
[1644759723250,0.85063,2939.3,2939.0,0.0036243]
[1644759723450,0.85063,2939.3,2939.1,0.01030219]
[1644759724454,0.85063,2939.3,2938.7,0.0036243]
[1644759724455,0.85063,2939.3,2938.9,0.85073]
[1644759724752,0.85063,2939.3,2939.1,0.01030075]
[1644759725803,0.85063,2939.3,2938.8,0.85076]
[1644759725999,0.85063,2939.3,2939.1,0.01030075]
[1644759726899,0.85063,2939.3,2938.9,0.85072]
[1644759727101,1.44721171,2939.2,2939.1,0.01030075]
[1644759727302,3.63561185,2939.2,2939.1,0.01030075]
[1644759727502,1.44721171,2939.2,2939.1,0.01030075]
[1644759728104,1.44721171,2939.2,2938.3,0.0036243]
[1644759728305,1.44721171,2939.2,2938.6,0.04120988]
[1644759728306,0.85073,2939.0,2938.6,0.04120988]
[1644759728504,0.85073,2939.0,2938.6,0.04483418]
[1644759728904,0.85073,2939.0,2938.6,0.89564418]
[1644759729103,0.85073,2939.0,2938.6,0.89201988]
[1644759729306,0.85073,2939.0,2938.6,0.8544343]
[1644759729547,0.85073,2939.0,2938.7,0.01030148]
[1644759730049,0.85073,2939.0,2938.7,0.86108148]
[1644759730451,0.85073,2939.0,2938.7,0.85078]
[1644759730855,0.85073,2939.0,2938.7,0.0103014]
[1644759731657,0.85073,2939.0,2938.5,0.0036243]
[1644759731960,0.84947632,2939.0,2938.7,0.01030142]
[1644759732958,0.84947632,2939.0,2938.5,0.0036243]
[1644759733157,0.84947632,2939.0,2938.7,0.01030142]
[1644759733598,0.84947632,2939.0,2938.7,0.86108142]
[1644759733999,2.69123124,2938.9,2938.7,0.01030142]
[1644759734199,2.69123124,2938.9,2938.6,0.0036243]
[1644759734200,3.54205124,2938.9,2938.6,0.0036243]
[1644759734399,0.85082,2938.9,2938.7,0.01030142]
[1644759735202,1.18923991,2938.8,2938.7,0.01030142]
[1644759735403,1.18923991,2938.8,2938.6,0.8544243]
[1644759735404,1.18923991,2938.8,2938.6,0.0036243]
[1644759735603,1.18923991,2938.8,2938.7,0.01030149]
[1644759736605,2.04003991,2938.8,2938.1,0.0036243]
[1644759736806,2.04003991,2938.8,2938.6,0.01030157]
[1644759737648,2.7010949,2938.7,2938.1,0.0036243]
[1644759737848,1.44747293,2938.6,2938.1,0.0036243]
[1644759738047,1.7022,2938.5,2938.1,0.04483709]
[1644759738249,0.85109,2938.5,2938.1,0.04483709]
[1644759738847,0.85109,2938.5,2938.1,0.0036243]
[1644759739248,4.35109,2938.5,2938.2,0.01030229]
[1644759739448,0.85109,2938.5,2938.2,0.01030229]
[1644759739649,0.85109,2938.5,2937.5,0.21131535]
[1644759739650,4.6,2938.4,2937.5,0.21131535]
[1644759739854,0.85128,2938.2,2937.5,0.21131535]
[1644759740050,6.82025276,2938.1,2937.6,0.04035807]
[1644759740252,1.44764276,2938.0,2937.6,0.04035807]
[1644759740905,2.44764276,2938.0,2937.6,0.04035807]
[1644759741109,1.44764276,2937.9,2937.6,0.04035807]
[1644759741305,0.85119,2937.8,2937.6,0.04035807]
[1644759742104,3.33564814,2937.7,2937.6,0.04035807]
[1644759742905,0.86207884,2937.8,2937.6,0.04035807]
[1644759742906,0.01088884,2937.8,2937.6,0.04035807]
[1644759743506,0.01088884,2937.8,2937.7,0.85101]
[1644759743708,3.39691989,2938.3,2937.7,0.85101]
[1644759743907,0.01088893,2937.8,2937.7,0.85101]
[1644759744547,0.01088893,2937.8,2937.7,1.72179538]
[1644759744946,0.85084,2938.5,2937.7,1.72179538]
[1644759745149,0.01088884,2937.9,2937.7,1.72179538]
[1644759746150,4.37297729,2938.8,2937.7,1.72179538]
[1644759746350,0.01088876,2937.9,2937.7,1.72179538]
[1644759747050,0.01088876,2937.9,2937.8,19.91]
[1644759747451,0.6701,2939.3,2937.8,19.91]
[1644759747656,0.01088876,2937.9,2937.8,22.76216]
[1644759748601,3.39986142,2939.1,2938.2,0.85072]
[1644759748802,3.47720125,2939.3,2938.2,0.85072]
[1644759749001,1.44740347,2939.2,2938.2,0.85072]
[1644759749206,0.8507,2939.0,2938.2,0.85072]
[1644759749604,0.8507,2939.0,2938.4,1.13531197]
[1644759749804,0.8507,2939.0,2938.5,0.85075]
[1644759750103,0.01089234,2938.7,2938.5,0.85075]
[1644759750911,0.85075,2938.9,2938.5,0.85075]
[1644759751109,0.01089234,2938.7,2938.5,0.85075]
[1644759751410,0.01089234,2938.7,2938.4,1.13531197]
[1644759751610,0.01089234,2938.7,2938.3,1.70149]
[1644759752047,1.70162,2939.0,2938.3,1.70149]
[1644759752448,0.01089251,2938.6,2938.3,1.70149]
[1644759753451,0.85076,2938.9,2938.3,1.70149]
[1644759753651,0.0108926,2938.6,2938.3,1.70149]
[1644759754252,0.0108926,2938.6,2938.2,0.85088]
[1644759754453,0.1701,2939.3,2938.0,1.87179]
[1644759754454,2.9733363,2938.8,2938.0,1.87179]
[1644759754653,0.85083,2938.6,2938.5,0.02193091]
[1644759754853,4.16212127,2939.3,2938.5,0.02193091]
[1644759755053,1.4475309,2939.2,2938.5,0.02193091]
[1644759755255,1.70183,2938.8,2938.5,0.02193091]
[1644759755456,3.1080218,2938.7,2938.5,0.02193091]
[1644759757303,3.11891414,2938.7,2938.5,0.02193091]
[1644759758106,3.1080218,2938.7,2938.5,0.02193091]
[1644759758304,3.11891414,2938.7,2938.5,0.02193091]
[1644759759305,3.1080218,2938.7,2938.5,0.02193091]
[1644759759549,3.11891414,2938.7,2938.5,0.03021923]
[1644759759954,3.11793917,2938.7,2938.5,0.03021923]
[1644759760552,3.10704683,2938.7,2938.5,0.03021923]
[1644759760756,3.11793917,2938.7,2938.5,0.03021923]